bitfinex-derivatives/quotes_ETHF0:USTF0_20260208
["timestamp","ask_amount","ask_price","bid_price","bid_amount"]
[1770545133924,7.87556427,2108.6,2107.3,7.58839]
[1770545134225,7.87556427,2108.6,2106.8,7.58839]
[1770545134426,7.87556427,2108.4,2106.8,7.58839]
[1770545134921,7.87950472,2108.4,2106.8,7.59412939]
[1770545136320,7.57650481,2108.2,2106.8,7.59412939]
[1770545139622,7.58044526,2108.4,2107.0,7.46327283]
[1770545139822,7.57650481,2108.8,2107.7,7.46327283]
[1770545140621,7.57650481,2108.8,2107.3,4.23854713]
[1770545140622,7.57650481,2109.3,2107.9,7.46327283]
[1770545141018,7.58162686,2109.3,2108.1,7.46327283]
[1770545141218,0.00512205,2109.3,2108.1,7.46327283]
[1770545141423,7.58162686,2109.3,2108.1,7.46327283]
[1770545142328,0.00512205,2109.3,2108.3,7.46327283]
[1770545142527,0.00512205,2109.3,2108.3,7.46782298]
[1770545143222,7.58162686,2109.3,2108.3,7.46782298]
[1770545143725,7.57650481,2109.6,2108.5,7.46327283]
[1770545144620,7.58258616,2109.6,2108.5,7.46327283]
[1770545145223,7.58258616,2109.6,2108.3,7.46782298]
[1770545148322,7.58258616,2109.6,2108.3,0.00455015]
[1770545149032,7.58258616,2109.6,2108.3,7.46782298]
[1770545152528,7.81982616,2109.6,2108.3,7.46782298]
[1770545153833,7.57650481,2109.4,2108.3,0.00455015]
[1770545154136,7.81376481,2109.4,2108.3,0.00455015]
[1770545155528,0.00608135,2109.6,2108.3,0.00455015]
[1770545155529,7.57650481,2109.2,2108.3,0.00455015]
[1770545161139,7.81381481,2109.0,2107.9,7.46327283]
[1770545161440,7.81381481,2109.0,2107.7,7.46327283]
[1770545161635,7.57650481,2108.7,2107.4,7.46327283]
[1770545161836,7.81384481,2108.7,2107.4,7.46327283]
[1770545162043,7.81384481,2108.7,2107.4,7.46872021]
[1770545163036,7.57650481,2108.5,2107.4,7.46872021]
[1770545165843,7.81386481,2108.5,2107.4,7.46872021]
[1770545166140,7.57650481,2108.5,2107.4,7.46872021]
[1770545166343,8.31829429,2108.3,2107.4,0.00544738]
[1770545166843,8.08091429,2108.1,2107.2,7.89162579]
[1770545167742,8.08696403,2108.1,2107.2,7.89775664]
[1770545168635,8.32437403,2108.1,2107.2,0.00613085]
[1770545170145,8.08091429,2107.9,2107.2,0.00613085]
[1770545171345,8.08091429,2107.9,2106.9,7.89162579]
[1770545172446,8.31834429,2107.9,2106.9,7.89563901]
[1770545172646,8.31834429,2107.9,2106.9,0.00401322]
[1770545173549,8.31834429,2107.9,2106.9,7.77788911]
[1770545173737,7.31834429,2107.9,2106.9,7.77788911]
[1770545176152,7.9579265,2107.7,2106.9,7.77788911]
[1770545176555,8.1953765,2107.7,2106.9,0.00401322]
[1770545177352,0.00604974,2108.1,2106.9,0.00401322]
[1770545177353,8.10720702,2109.4,2107.8,0.23744]
[1770545177655,8.10720702,2108.8,2108.0,2.82406228]
[1770545177850,8.10720702,2108.8,2108.0,7.44026408]
[1770545178050,8.10720702,2108.8,2108.0,2.82406228]
[1770545178355,8.11169945,2108.8,2108.0,2.82406228]
[1770545178555,8.11169945,2108.8,2108.1,1.7926233]
[1770545179057,23.11169945,2108.8,2108.2,1.7926233]
[1770545181962,8.11169945,2108.8,2108.2,1.7926233]
[1770545182156,8.10012122,2108.8,2108.2,1.7926233]
[1770545182664,8.10012122,2108.8,2107.5,0.23747]
[1770545182665,7.9579265,2108.7,2107.7,2.2147813]
[1770545183161,7.9579265,2108.5,2107.5,2.82266447]
[1770545183362,7.9579265,2108.5,2107.6,4.71058731]
[1770545183556,0.00449243,2108.8,2107.6,2.21446741]
[1770545183557,7.9579265,2108.3,2107.6,2.21446741]
[1770545183757,7.9579265,2108.2,2107.6,2.21446741]
[1770545184162,7.9579265,2108.6,2107.9,2.24403942]
[1770545184362,22.96241893,2108.8,2108.1,2.24403942]
[1770545184564,0.00449243,2108.8,2108.2,2.24403942]
[1770545184763,7.9579265,2108.7,2108.2,2.24403942]
[1770545185263,0.00449243,2108.8,2108.2,2.24403942]
[1770545185663,0.00449243,2108.8,2108.4,2.2065655]
[1770545185867,0.00449243,2108.8,2108.4,2.21131656]
[1770545191969,8.0518869,2108.7,2108.4,0.00475106]
[1770545193468,23.0518869,2108.7,2108.4,0.00475106]
[1770545193672,8.0518869,2108.7,2108.4,0.00475106]
[1770545193971,23.0518869,2108.7,2108.2,4.47338844]
[1770545194175,23.0518869,2108.7,2108.3,1.61000463]
[1770545194865,8.1293326,2108.6,2108.1,4.26548044]
[1770545195071,8.1293326,2108.6,2108.0,4.26548044]
[1770545195374,8.12920564,2108.4,2107.8,1.4430699]
[1770545195773,23.18728576,2108.3,2107.8,1.4430699]
[1770545195972,8.18728576,2108.3,2107.8,1.4430699]
[1770545196178,23.18728576,2108.3,2107.8,1.44495729]
[1770545196379,15.0,2108.3,2107.8,1.44495729]
[1770545197382,15.0,2108.3,2107.9,1.46243516]
[1770545198180,8.18728576,2108.5,2107.9,1.46243516]
[1770545198380,15.0,2108.4,2107.9,1.46243516]
[1770545198576,8.18728576,2108.3,2107.9,1.46243516]
[1770545198779,23.18728576,2108.4,2107.9,1.46243516]
[1770545199373,15.0,2108.4,2107.9,1.46243516]
[1770545200281,8.18728576,2108.6,2107.9,1.46243516]
[1770545200475,15.0,2108.5,2107.9,1.46243516]
[1770545200675,23.18728576,2108.5,2108.0,1.40453107]
[1770545201082,8.18728576,2108.5,2108.0,1.40453107]
[1770545202280,8.18728576,2108.7,2108.2,1.37645402]
[1770545202484,23.18728576,2108.7,2108.2,1.37645402]
[1770545204283,15.0,2108.7,2108.3,1.31618058]
[1770545205285,23.18728576,2108.7,2108.3,1.31618058]
[1770545205475,8.18728576,2108.6,2108.3,1.31618058]
[1770545205876,8.18728576,2108.4,2108.2,2.82266447]
[1770545206079,8.18728576,2108.4,2107.8,4.24043452]
[1770545206276,8.18728576,2108.2,2107.9,8.94130314]
[1770545206585,8.18728576,2108.4,2108.0,4.70275601]
[1770545206886,8.18728576,2108.4,2107.9,6.56065115]
[1770545207082,23.18728576,2108.3,2108.0,4.70647613]
[1770545207279,8.18728576,2108.3,2108.1,4.7144134]
[1770545207584,0.00449243,2108.8,2108.0,4.23854713]
[1770545207585,23.18728576,2108.2,2108.0,4.23854713]
[1770545207787,8.18728576,2108.6,2108.1,4.71442789]
[1770545207985,8.18728576,2108.6,2107.8,4.24043452]
[1770545208184,8.18728576,2108.4,2107.9,4.71556483]
[1770545208387,8.18728576,2108.4,2107.8,4.24043452]
[1770545208587,8.18728576,2108.2,2107.9,4.71480882]
[1770545208785,8.18728576,2108.2,2107.8,0.00188739]
[1770545208986,8.18728576,2108.0,2107.9,4.58387748]
[1770545209188,8.18728576,2108.0,2107.9,1.05231942]
[1770545209486,23.18728576,2108.0,2107.9,1.05231942]
[1770545209688,23.18728576,2108.0,2107.8,0.00188739]
[1770545212389,8.18728576,2107.9,2107.8,0.00188739]
[1770545213683,23.18728576,2108.0,2107.8,0.00188739]
[1770545215186,15.0,2108.0,2107.8,8.43664723]
[1770545215385,8.18728576,2108.5,2108.0,8.43475984]
[1770545215788,11.35036953,2108.4,2108.0,8.43475984]
[1770545216286,8.18728576,2108.3,2107.5,5.66970571]
[1770545216590,8.18728576,2108.3,2107.5,14.10446555]
[1770545216785,8.18728576,2108.1,2107.5,14.10446555]
[1770545216985,7.41570276,2108.1,2107.5,14.10446555]
[1770545217289,8.18728576,2107.9,2107.6,8.43475984]
[1770545217688,19.53765529,2107.9,2107.6,8.43475984]
[1770545217990,0.24182243,2108.8,2107.7,8.43475984]
[1770545217991,8.18728576,2108.4,2107.7,8.43475984]
[1770545218189,8.18728576,2108.4,2107.8,8.43475984]
[1770545218390,8.18728576,2108.4,2108.0,8.43475984]
[1770545218589,7.24328576,2108.4,2108.0,8.43475984]
[1770545219286,0.00449243,2108.8,2108.0,8.43475984]
[1770545219493,8.18728576,2109.4,2108.4,8.43475984]
[1770545219689,8.18728576,2109.4,2108.5,8.43475984]
[1770545220295,8.18728576,2109.4,2108.6,8.43475984]
[1770545220502,8.19287115,2109.4,2108.6,8.43906661]
[1770545221295,8.19287115,2109.4,2108.8,8.43475984]
[1770545221593,8.19287115,2109.4,2108.9,12.87076459]
[1770545221793,8.19287115,2109.4,2108.9,8.43475984]
[1770545223089,8.19287115,2109.4,2108.7,8.43475984]
[1770545223293,8.19287115,2109.4,2108.6,0.00430677]
[1770545224295,8.19287115,2109.4,2108.6,8.43906661]
[1770545224488,8.19287115,2109.4,2108.8,8.43475984]
[1770545225295,0.00558539,2109.4,2109.0,8.43475984]
[1770545226501,9.10749822,2109.4,2108.8,9.01822659]
[1770545228696,9.10749822,2109.4,2108.6,14.69223907]
[1770545228899,9.10749822,2109.4,2108.7,44.11551342]
[1770545229091,9.10749822,2109.4,2108.8,13.44151342]
[1770545229299,9.10749822,2109.4,2108.9,9.01822659]
[1770545229602,0.00558539,2109.4,2108.9,9.01822659]
[1770545229801,9.10191283,2109.6,2108.9,9.01822659]
[1770545230803,9.10548862,2109.6,2108.9,9.01822659]
[1770545239607,9.10548862,2109.6,2109.1,9.07939289]
[1770545240712,9.33296759,2109.7,2109.1,9.07939289]
[1770545241813,9.33747215,2109.7,2109.1,9.07939289]
[1770545243009,0.00450456,2109.7,2109.1,9.07939289]
[1770545245213,0.00450456,2109.7,2109.3,9.07939289]
[1770545245413,9.33296759,2109.8,2109.3,9.07939289]
[1770545245914,9.33296759,2109.8,2109.2,9.07939289]
[1770545246317,9.33831627,2109.8,2109.1,9.07939289]
[1770545247602,9.33831627,2109.8,2109.3,9.07939289]
[1770545249314,9.33831627,2109.8,2109.1,4.24293865]
[1770545249315,0.00534868,2109.8,2109.5,9.07939289]
[1770545249517,9.33296759,2110.0,2109.5,9.07939289]
[1770545250011,6.76442356,2110.0,2109.7,9.07939289]
[1770545250208,9.33296759,2110.2,2109.7,9.07939289]
[1770545250410,9.33897741,2110.2,2109.7,9.07939289]
[1770545251018,0.00600982,2110.2,2109.9,9.07939289]
[1770545251920,9.33897741,2110.2,2109.7,9.07939289]
[1770545252119,9.33897741,2110.2,2109.9,9.07939289]
[1770545252319,9.33897741,2110.2,2109.7,9.07939289]
[1770545254716,9.33897741,2110.2,2109.5,4.24293865]
[1770545254923,9.33897741,2110.2,2109.4,13.32233154]
[1770545255121,9.33897741,2110.2,2109.5,4.42347535]
[1770545255325,9.33897741,2110.2,2109.4,13.32233154]
[1770545255523,9.33897741,2110.2,2109.3,34.90493865]
[1770545255823,9.33897741,2110.2,2109.4,4.42433827]
[1770545256122,9.33897741,2110.2,2109.3,30.662]
[1770545256322,9.33897741,2110.2,2109.4,4.42438611]
[1770545256623,9.33897741,2110.2,2109.3,30.662]
[1770545256924,9.33897741,2110.2,2109.4,4.42458965]
[1770545257116,9.33897741,2110.2,2109.3,39.77461886]
[1770545257316,9.33897741,2110.2,2109.4,4.42541393]
[1770545257524,9.33897741,2110.2,2109.3,39.77461886]
[1770545257724,9.33897741,2110.2,2109.2,13.35555751]
[1770545257921,9.33897741,2110.2,2109.2,9.11261886]
[1770545259324,9.33897741,2110.2,2109.3,9.11261886]
[1770545260326,9.33897741,2110.2,2109.3,13.35555751]
[1770545260926,9.33897741,2110.2,2109.4,9.11261886]
[1770545261225,9.33897741,2110.2,2109.6,9.11261886]
[1770545262721,0.00600982,2110.2,2109.6,9.11261886]
[1770545262923,8.74727268,2110.2,2109.7,9.11261886]
[1770545263328,8.74727268,2110.2,2109.6,4.24293865]
[1770545263627,8.74727268,2110.2,2109.5,13.35555751]
[1770545264227,8.74727268,2110.2,2109.6,9.11261886]
[1770545264423,0.00600982,2110.2,2109.6,9.11261886]
[1770545265021,0.00600982,2110.2,2109.6,13.35555751]
[1770545265226,0.00600982,2110.2,2109.7,9.11261886]
[1770545266128,0.00600982,2110.2,2109.8,9.11261886]
[1770545267433,8.74727268,2110.2,2109.8,9.11261886]
[1770545268728,0.00600982,2110.2,2109.8,9.11261886]
[1770545269631,0.00600982,2110.2,2109.9,9.11261886]
[1770545270230,8.74727268,2110.2,2109.9,9.11261886]
[1770545270432,0.00600982,2110.2,2109.9,9.11261886]
[1770545272631,8.74727268,2110.2,2109.7,11.94260985]
[1770545272840,8.74727268,2110.2,2109.6,11.94260985]
[1770545273436,8.74727268,2110.2,2109.7,9.11261886]
[1770545273638,0.00600982,2110.2,2109.7,9.11261886]
[1770545273938,0.00600982,2110.2,2109.8,13.47500708]
[1770545274130,0.00600982,2110.2,2109.8,9.11261886]
[1770545274330,8.74126286,2111.2,2110.1,9.11261886]
[1770545274537,8.74126286,2111.2,2110.4,9.11261886]
[1770545274936,8.74126286,2111.2,2110.2,11.94260985]
[1770545275129,8.74126286,2111.2,2110.4,9.11261886]
[1770545275337,8.74488794,2111.2,2110.4,9.11771265]
[1770545277635,8.74488794,2111.2,2110.5,9.11261886]
[1770545278233,0.00362508,2111.2,2110.5,11.94260985]
[1770545278438,0.00362508,2111.2,2110.6,9.11261886]
[1770545278633,8.74488794,2111.2,2110.6,9.11261886]
[1770545281741,8.74488794,2111.2,2110.4,2.83508478]
[1770545281742,8.74488794,2111.2,2110.4,9.11771265]
[1770545287245,0.00362508,2111.2,2110.6,8.34940818]
[1770545288847,8.30762341,2111.2,2110.6,8.34940818]
[1770545290749,0.00362508,2111.2,2110.6,8.34940818]
[1770545290945,0.00362508,2111.2,2110.6,11.17939917]
[1770545291143,8.30399833,2112.1,2111.1,8.34940818]
[1770545291542,8.30399833,2112.3,2111.3,8.34940818]
[1770545292050,8.30843604,2112.3,2111.3,8.34940818]
[1770545292249,0.00443771,2112.3,2111.6,8.34940818]
[1770545292651,8.30843604,2112.3,2111.6,8.34940818]
[1770545293048,0.00443771,2112.3,2111.6,8.34940818]
[1770545293943,7.88613357,2112.3,2111.6,8.34940818]
[1770545295045,8.12307357,2112.3,2111.2,7.73293947]
[1770545296653,7.88613357,2112.3,2111.2,7.73293947]
[1770545296954,0.00443771,2112.3,2111.7,7.73293947]
[1770545297347,7.88169586,2112.7,2111.7,7.73293947]
[1770545297547,0.23683,2113.3,2111.6,4.75589244]
[1770545297548,7.88169586,2113.7,2112.3,7.73293947]
[1770545297747,7.88169586,2113.7,2112.4,7.73293947]
[1770545297949,7.88169586,2113.7,2112.5,7.73293947]
[1770545298349,7.88568691,2113.7,2112.5,7.73808204]
[1770545304058,8.12246691,2113.7,2112.5,7.73808204]
[1770545304260,8.11850586,2113.4,2112.5,0.00514257]
[1770545305762,7.88169586,2113.2,2112.5,0.00514257]
[1770545307468,7.88169586,2113.2,2112.1,7.73293947]
[1770545308351,7.88169586,2113.2,2112.1,7.73682583]
[1770545308765,7.88169586,2113.6,2112.1,7.73682583]
[1770545310857,8.11848586,2113.6,2112.1,7.73682583]
[1770545312063,7.88169586,2113.4,2112.1,7.73682583]
[1770545312962,8.11850586,2113.4,2112.1,7.73682583]
[1770545314567,0.00399105,2113.7,2112.1,7.73682583]
[1770545314568,7.88568691,2113.7,2112.5,7.73293947]
[1770545314768,7.88568691,2113.7,2112.6,7.73293947]
[1770545315367,0.00399105,2113.7,2112.6,41.16289141]
[1770545315668,18.11069586,2114.5,2113.0,7.73293947]
[1770545315669,7.88169586,2114.5,2113.0,7.73293947]
[1770545316165,7.88169586,2114.5,2113.3,7.45276435]
[1770545316561,7.88508274,2114.5,2113.3,7.45276435]
[1770545316763,7.88508274,2114.5,2113.4,7.45276435]
[1770545317768,0.00338688,2114.5,2113.4,7.45276435]
[1770545318266,0.00338688,2114.5,2113.7,7.45276435]
[1770545318471,0.01,2114.9,2113.9,7.45276435]
[1770545318872,7.20627671,2114.9,2113.9,7.45276435]
[1770545319469,7.21030243,2114.9,2113.9,7.45276435]
[1770545319670,7.21030243,2114.9,2113.7,7.45652422]
[1770545319873,7.44695243,2114.9,2113.7,7.45652422]
[1770545320069,7.19627671,2114.7,2113.7,0.00375987]
[1770545320473,7.19627671,2114.7,2113.4,7.45276435]
[1770545321480,7.19627671,2114.4,2113.4,7.4566188]
[1770545325088,7.19627671,2114.4,2113.4,0.00385445]
[1770545325286,7.19627671,2114.1,2112.8,7.45276435]
[1770545325484,7.43303671,2113.9,2112.8,7.45276435]
[1770545325684,7.19627671,2113.7,2112.8,7.45276435]
[1770545325884,7.19627671,2113.7,2112.0,21.78097]
[1770545325885,7.19627671,2113.4,2112.3,7.45276435]
[1770545326280,7.20049092,2113.4,2112.3,7.45655068]
[1770545326691,7.43731092,2113.4,2112.3,7.45655068]
[1770545328084,7.43731092,2113.4,2112.3,0.00378633]
[1770545328488,7.43731092,2113.4,2112.3,7.45655068]
[1770545334098,7.43311671,2113.2,2112.3,0.00378633]
[1770545334593,7.19627671,2113.2,2111.6,2.80303925]
[1770545334793,7.19627671,2112.7,2111.7,7.45276435]
[1770545335698,7.19627671,2112.7,2111.7,7.45881822]
[1770545342093,0.23688,2112.8,2111.3,2.80303925]
[1770545342094,7.43320671,2112.4,2111.3,7.45276435]
[1770545342996,7.43320671,2112.4,2111.3,7.45763911]
[1770545343197,7.19627671,2112.2,2111.3,7.45763911]
[1770545346904,6.65330019,2112.0,2110.9,6.75149961]
[1770545347102,6.89028019,2112.0,2110.9,6.75149961]
[1770545347996,6.89028019,2112.0,2110.9,6.75698314]
[1770545349006,6.65330019,2111.8,2110.9,6.75698314]
[1770545349206,6.65907288,2111.8,2110.9,6.75698314]
[1770545351407,6.65907288,2111.8,2110.9,0.00548353]
[1770545352611,6.65907288,2111.8,2110.9,6.75698314]
[1770545353498,6.89606288,2111.8,2110.9,6.75698314]
[1770545353701,6.89606288,2111.8,2110.9,0.00548353]
[1770545354106,7.04369521,2111.3,2110.9,3.53e-06]
[1770545354410,7.04369521,2111.7,2110.5,6.63859007]
[1770545355309,7.04369521,2111.7,2110.5,6.64224506]
[1770545359409,7.04369521,2111.3,2110.4,6.63859007]
[1770545359609,7.04369521,2111.1,2110.0,6.63859007]
[1770545360611,7.04369521,2110.4,2109.3,6.63859007]
[1770545361812,7.28084521,2110.4,2109.3,6.63859007]
[1770545362199,7.28084521,2110.4,2108.7,2.80303925]
[1770545362403,7.28084521,2110.4,2108.8,6.63859007]
[1770545363211,7.04369521,2110.2,2108.8,6.63859007]
[1770545363408,7.04772678,2110.2,2108.8,6.63859007]
[1770545363712,7.04369521,2110.0,2108.8,6.63859007]
[1770545365710,7.04369521,2110.0,2108.5,6.63859007]
[1770545365912,7.04369521,2109.4,2108.3,6.63859007]
[1770545367803,7.04369521,2109.4,2107.8,6.63859007]
[1770545368208,7.04369521,2109.2,2107.8,6.63859007]
[1770545368403,7.28098521,2109.2,2107.8,6.63859007]
[1770545368608,7.04369521,2109.0,2107.8,6.63859007]
[1770545370107,7.04369521,2109.4,2107.8,6.63859007]
[1770545370311,7.04369521,2109.4,2108.0,6.63859007]
[1770545373013,7.04369521,2109.8,2108.2,6.63859007]
[1770545373414,7.04369521,2109.8,2108.4,6.63859007]
[1770545379218,0.00403157,2110.2,2108.7,6.33549184]
[1770545379219,6.31958492,2110.0,2108.7,6.33549184]
[1770545385233,6.31958492,2110.0,2108.8,6.33549184]
[1770545386331,6.31958492,2110.0,2108.9,6.33549184]
[1770545387133,6.31958492,2110.0,2108.9,9.13853109]
[1770545387432,6.31958492,2110.0,2109.0,6.33549184]
[1770545388130,6.31958492,2110.0,2109.1,6.33549184]
[1770545390434,6.31958492,2110.0,2108.9,9.13853109]
[1770545390623,6.31958492,2110.0,2108.9,2.80303925]
[1770545390844,6.31958492,2110.0,2108.8,9.13853109]
[1770545391028,6.31958492,2110.0,2109.0,6.33549184]
[1770545391231,6.31958492,2110.0,2108.9,2.80303925]
[1770545392730,6.31958492,2109.6,2108.5,2.83283376]
[1770545392930,4.05421849,2109.5,2108.5,2.83283376]
[1770545393232,4.05421849,2109.5,2108.4,6.33549184]
[1770545397237,4.05421849,2109.5,2108.6,6.33549184]
[1770545399158,4.05421849,2109.5,2108.7,4.30014404]
[1770545399435,4.05421849,2109.5,2108.6,6.33549184]
[1770545399642,4.05421849,2109.5,2108.8,6.33549184]
[1770545402740,4.05421849,2109.5,2108.5,6.33549184]
[1770545402934,4.05421849,2109.5,2108.6,6.33549184]
[1770545403339,4.05421849,2109.5,2108.3,6.33549184]
[1770545403538,4.05421849,2109.5,2108.5,6.33549184]
[1770545419254,4.05421849,2109.5,2108.7,6.61338554]
[1770545424468,3.4581848,2110.1,2109.1,6.61338554]
[1770545424670,3.4581848,2110.1,2109.3,6.61338554]
[1770545426473,3.4581848,2110.1,2109.0,6.61338554]
[1770545426474,3.22884184,2109.8,2109.0,6.61338554]
[1770545427771,5.61575119,2110.2,2108.7,4.26692694]
[1770545427772,3.16347798,2110.1,2109.2,6.61338554]
[1770545430070,2.96335098,2110.2,2109.2,6.61338554]
[1770545431881,0.00403157,2110.2,2109.4,6.61338554]
[1770545434573,2.90909439,2111.0,2109.7,6.61338554]
[1770545434768,2.90909439,2111.0,2109.9,6.61338554]
[1770545435380,2.91291157,2111.0,2109.9,6.61741711]
[1770545435677,3.14999157,2111.0,2109.9,6.61741711]
[1770545436775,3.14999157,2111.0,2109.9,0.00403157]
[1770545436976,3.14999157,2111.0,2109.9,6.12048227]
[1770545437367,2.86269726,2110.7,2109.9,6.12048227]
[1770545441482,2.55581527,2110.5,2109.9,6.12048227]
[1770545445185,2.47675159,2110.7,2109.9,6.12048227]
[1770545446083,3.61934297,2110.8,2109.9,6.12048227]
[1770545446284,2.4502519,2110.8,2109.9,7.28957334]
[1770545446590,2.4502519,2110.8,2109.9,6.12048227]
[1770545446787,2.4502519,2110.8,2109.9,7.28957334]
[1770545447286,2.41900796,2110.9,2109.9,7.28957334]
[1770545447486,3.59191621,2111.0,2109.9,7.28957334]
[1770545447689,2.39078975,2110.9,2109.9,7.28957334]
[1770545451489,1.16909107,2110.8,2109.9,6.12048227]
[1770545451689,2.39962441,2110.7,2109.9,6.12048227]
[1770545452991,1.16909107,2110.6,2109.9,6.12048227]
[1770545453291,2.351649,2110.5,2109.9,6.12048227]
[1770545453592,2.32663527,2110.7,2109.9,6.12048227]
[1770545454487,1.16909107,2110.8,2109.9,6.12048227]
[1770545454795,2.32571212,2110.8,2109.9,7.28957334]
[1770545454988,1.40998825,2111.0,2110.1,6.1164507]
[1770545454989,3.70903836,2111.0,2110.1,6.1164507]
[1770545455186,3.47195836,2111.0,2110.1,6.1164507]
[1770545455387,2.30089035,2110.9,2110.1,6.1164507]
[1770545462208,2.30089035,2110.9,2110.2,6.1164507]
[1770545463999,6.02076574,2110.3,2109.9,6.12048227]
[1770545464800,7.18985681,2110.4,2109.9,6.12048227]
[1770545464998,6.02076574,2110.4,2109.9,6.12048227]
[1770545469002,7.18985681,2110.4,2109.9,0.00403157]
[1770545469203,5.90179344,2110.1,2109.6,5.53102083]
[1770545469703,5.90179344,2110.3,2109.6,5.53102083]
[1770545471411,5.90179344,2110.6,2109.8,5.53102083]
[1770545471705,7.07088451,2110.6,2109.8,5.53102083]
[1770545475806,5.61515592,2110.9,2110.0,5.47662965]
[1770545476006,6.78424699,2110.9,2110.0,5.47662965]
[1770545477410,5.61515592,2110.9,2110.0,5.47662965]
[1770545481812,5.61515592,2110.7,2109.8,5.47662965]
[1770545484610,5.61515592,2110.7,2109.9,5.47662965]
[1770545486212,5.61515592,2110.7,2110.0,5.47662965]
[1770545500922,5.49721983,2110.6,2109.7,7.90946652]
[1770545501726,5.49721983,2110.5,2109.7,5.07247064]
[1770545501932,5.49721983,2110.5,2109.7,7.90946652]
[1770545502132,5.49721983,2110.5,2109.7,5.07247064]
[1770545502831,6.66616285,2110.5,2109.7,5.07247064]
[1770545503033,5.49721983,2110.3,2109.5,5.07247064]
[1770545513343,48.04065079,2110.3,2109.5,5.07247064]
[1770545513543,5.49721983,2110.2,2109.5,5.07247064]
[1770545519156,5.49721983,2110.1,2109.1,5.07247064]
[1770545519346,5.49721983,2110.0,2109.1,5.07247064]
[1770545522255,5.49721983,2109.8,2108.9,5.07247064]
[1770545523258,48.04065079,2109.8,2108.9,5.07247064]
[1770545523454,5.49721983,2109.7,2108.9,5.07247064]
[1770545524151,5.49721983,2109.5,2108.9,5.07247064]
[1770545524458,5.50183774,2109.5,2108.9,5.07247064]
[1770545526155,5.50183774,2109.5,2108.3,4.89135687]
[1770545530259,5.50183774,2109.5,2108.4,4.89135687]
[1770545532055,5.0293336,2109.4,2108.4,4.89135687]
[1770545532268,5.0293336,2109.2,2108.4,4.89135687]
[1770545535160,5.08825083,2108.9,2108.0,5.04689757]
[1770545535361,5.08825083,2108.7,2108.0,5.04689757]
[1770545535858,5.08825083,2108.7,2107.6,5.04689757]
[1770545535859,6.25719385,2108.7,2107.6,5.04689757]
[1770545536461,1.16894302,2108.4,2107.6,5.04689757]
[1770545536659,5.08825083,2108.3,2107.6,5.04689757]
[1770545537060,5.08825083,2108.3,2107.3,5.04689757]
[1770545537860,5.08825083,2107.7,2106.9,5.04689757]
[1770545538160,5.09248473,2107.7,2106.9,5.04689757]
[1770545539455,5.09248473,2107.7,2106.8,5.04689757]
[1770545539456,5.08825083,2107.2,2106.8,5.04689757]
[1770545539661,35.76625083,2107.4,2106.8,5.04689757]
[1770545540574,5.08825083,2107.3,2106.8,5.04689757]
[1770545540957,6.26106078,2107.3,2106.3,5.04689757]
[1770545541163,1.17280995,2107.3,2106.3,5.04689757]
[1770545541359,6.26106078,2107.3,2106.3,5.04689757]
[1770545541664,35.76625083,2107.4,2106.5,5.04689757]
[1770545541963,5.08825083,2107.3,2106.5,5.04689757]
[1770545544164,6.26106078,2107.3,2106.5,5.04689757]
[1770545548264,6.26106078,2107.1,2106.5,5.04689757]
[1770545548668,6.26106078,2107.3,2106.5,5.04689757]
[1770545549369,35.76625083,2107.4,2106.5,5.04689757]
[1770545550263,5.08825083,2107.4,2106.5,5.04689757]
[1770545551166,1.17280995,2107.1,2106.5,5.04689757]
[1770545551574,5.08825083,2107.2,2106.5,5.04689757]
[1770545552371,1.17280995,2107.3,2106.5,5.04689757]
[1770545552775,6.26106078,2107.3,2106.5,5.04689757]
[1770545552973,5.08825083,2107.3,2106.5,5.04689757]
[1770545553173,5.08825083,2107.4,2106.5,5.04689757]
[1770545554479,0.0042339,2107.7,2107.1,5.04689757]
[1770545555770,4.7456046,2107.7,2107.1,5.04689757]
[1770545559582,0.0042339,2107.7,2107.1,5.04689757]
[1770545560976,4.7456046,2107.7,2107.1,5.04689757]
[1770545564484,4.7456046,2107.7,2106.9,4.61896056]
[1770545565077,0.0042339,2107.7,2106.9,7.45029213]
[1770545565277,0.0042339,2107.7,2107.0,4.61896056]
[1770545566294,0.0042339,2107.7,2107.0,7.45029213]
[1770545566476,0.0042339,2107.7,2107.1,4.61896056]
[1770545566875,4.7456046,2107.7,2107.1,4.61896056]
[1770545568284,4.7456046,2107.7,2106.6,0.23757]
[1770545568285,4.7413707,2107.5,2106.6,4.61896056]
[1770545568886,4.7413707,2107.5,2106.7,4.61896056]
[1770545575791,4.7413707,2107.6,2106.7,4.61896056]
[1770545576297,4.7413707,2107.6,2106.7,7.45029213]
[1770545576493,4.7413707,2107.6,2106.8,4.61896056]
[1770545581403,0.0042339,2107.7,2106.9,4.61896056]
[1770545581900,0.0042339,2107.7,2107.0,4.61896056]
[1770545582099,4.7413707,2107.9,2107.2,4.61896056]
[1770545582913,4.7413707,2107.9,2107.0,4.61896056]
[1770545583103,4.74695625,2107.9,2107.0,4.62308661]
[1770545583601,4.98438625,2107.9,2107.0,4.62308661]
[1770545586806,4.28791439,2107.7,2107.0,4.62308661]
[1770545587502,4.28791439,2107.4,2107.0,4.62308661]
[1770545588410,4.28791439,2107.2,2106.8,4.61637795]
[1770545590209,4.28791439,2107.3,2106.8,4.61637795]
[1770545590407,1.17255272,2107.6,2106.8,4.61637795]
[1770545590609,4.28791439,2107.7,2107.0,4.61637795]
[1770545591407,4.53092994,2107.9,2107.1,4.61637795]
[1770545593407,4.27308003,2107.6,2106.9,2.83133157]
[1770545593713,4.27308003,2107.6,2106.7,4.15853075]
[1770545593915,4.27308003,2107.5,2106.5,4.15853075]
[1770545595503,4.27308003,2107.4,2106.2,2.83133157]
[1770545595710,4.27308003,2107.0,2106.1,4.15853075]
[1770545596510,4.51062003,2107.0,2106.1,4.15853075]
[1770545597309,4.51062003,2107.0,2105.7,4.15853075]
[1770545598508,4.27308003,2106.8,2105.7,4.15853075]
[1770545599113,4.27308003,2106.7,2105.5,4.15853075]
[1770545599309,4.27308003,2106.4,2105.5,4.15853075]
[1770545599510,4.27695457,2106.4,2105.5,4.15853075]
[1770545600811,0.00387454,2106.4,2105.5,4.15853075]
[1770545601020,4.27308003,2106.8,2105.5,6.98986232]
[1770545601212,4.27308003,2106.8,2105.7,4.15853075]
[1770545602109,0.00571046,2106.8,2105.7,4.16251313]
[1770545602316,0.00571046,2106.8,2105.9,4.15853075]
[1770545605414,4.27308003,2107.4,2106.0,4.15853075]
[1770545605619,4.27308003,2107.4,2106.1,4.15853075]
[1770545606017,4.27308003,2107.4,2106.2,4.15853075]
[1770545606416,4.27690471,2107.4,2106.3,4.15853075]
[1770545606922,0.00382468,2107.4,2106.3,11.31067002]
[1770545607224,0.00382468,2107.4,2106.5,4.15853075]
[1770545610622,4.27308003,2107.8,2106.7,4.15853075]
[1770545610815,4.27308003,2107.8,2106.8,4.15853075]
[1770545611617,4.27825236,2107.8,2106.8,4.15853075]
[1770545617419,0.00517233,2107.8,2106.8,4.15853075]
[1770545617625,0.00517233,2107.8,2106.8,6.98986232]
[1770545617828,0.00517233,2107.8,2107.0,4.20541949]
[1770545618133,4.3650149,2107.8,2107.0,4.20541949]
[1770545620529,4.3650149,2107.8,2106.7,4.20541949]
[1770545620921,4.6024549,2107.8,2106.7,4.20541949]